bitfinex/quotes_ETHUSD_20250725
["timestamp","ask_amount","ask_price","bid_price","bid_amount"]
[1753420125141,10.57583425,3638.7,3638.6,1e-08]
[1753420125445,11.85223425,3638.7,3638.6,1e-08]
[1753420125727,6.56133425,3638.7,3638.6,1e-08]
[1753420125941,11.84328194,3638.7,3638.6,1e-08]
[1753420126085,11.03018194,3638.7,3638.6,1e-08]
[1753420126286,11.02918194,3638.7,3638.6,1e-08]
[1753420126718,0.8091,3639.6,3638.6,0.47470001]
[1753420126884,2.74770566,3639.4,3638.6,0.92770001]
[1753420127088,2.74823425,3638.7,3638.6,0.92770001]
[1753420127288,10.09823425,3638.7,3638.6,0.47470001]
[1753420127931,10.09823425,3638.7,3638.6,1e-08]
[1753420128136,11.38286626,3638.7,3638.6,1e-08]
[1753420128339,11.84146626,3638.7,3638.6,1e-08]
[1753420128623,11.38186626,3638.7,3638.6,1e-08]
[1753420129413,11.84146626,3638.7,3638.6,1e-08]
[1753420129617,7.03286626,3638.7,3638.6,1e-08]
[1753420129842,10.09523425,3638.7,3638.6,1e-08]
[1753420130018,5.74823425,3638.7,3638.6,1e-08]
[1753420130338,3.0,3638.7,3638.6,1e-08]
[1753420130637,10.09623425,3638.7,3638.6,0.45180001]
[1753420130795,10.09623425,3638.7,3638.6,1e-08]
[1753420130990,11.380672,3638.7,3638.6,1e-08]
[1753420131723,7.032672,3638.7,3638.6,1e-08]
[1753420131933,3.0,3638.7,3638.6,0.90480001]
[1753420132097,7.347,3638.7,3638.6,0.90480001]
[1753420132415,10.09523425,3638.7,3638.6,0.45180001]
[1753420132927,7.347,3638.7,3638.6,0.45180001]
[1753420133132,10.09523425,3638.7,3638.6,0.45180001]
[1753420133730,10.23383425,3638.7,3638.6,0.45180001]
[1753420133929,3.1376,3638.7,3638.6,0.45180001]
[1753420134233,7.4856,3638.7,3638.6,0.45180001]
[1753420134440,10.23383425,3638.7,3638.6,0.45180001]
[1753420134731,10.02227165,3640.0,3639.3,0.8045]
[1753420134940,0.1376,3639.8,3639.4,0.4518]
[1753420135232,2.74675144,3640.7,3639.4,0.4518]
[1753420135233,0.4596,3641.8,3639.6,0.8332]
[1753420135434,0.4596,3641.8,3639.4,0.45947387]
[1753420135435,4.354,3640.8,3640.3,2.7469695]
[1753420135729,4.354,3640.8,3640.5,0.8332]
[1753420136100,4.355,3640.7,3640.6,0.9048]
[1753420136316,7.355,3640.7,3640.6,0.9048]
[1753420136513,4.355,3640.7,3640.6,0.9048]
[1753420137193,4.355,3640.7,3640.1,0.4518]
[1753420137418,4.355,3640.7,3640.2,0.453]
[1753420137602,4.355,3640.7,3640.0,0.8332]
[1753420137915,0.04,3640.9,3640.1,0.9048]
[1753420137916,4.351,3640.6,3640.1,0.9048]
[1753420138121,4.351,3640.6,3640.2,0.9048]
[1753420138298,4.351,3640.6,3640.3,0.4518]
[1753420138513,4.351,3640.6,3640.2,0.453]
[1753420138720,4.351,3640.6,3640.4,0.4518]
[1753420139041,4.351,3640.6,3640.5,0.4518]
[1753420139338,7.09779997,3640.6,3640.5,0.4518]
[1753420139533,3.0,3640.5,3639.8,0.4518]
[1753420139718,2.74729209,3640.0,3639.8,0.4518]
[1753420139902,4.355,3639.9,3639.5,1.2862]
[1753420140096,7.10233808,3639.9,3639.6,0.453]
[1753420140540,3.0,3640.4,3639.7,0.4518]
[1753420140541,2.74718153,3640.1,3639.7,0.4518]
[1753420140836,4.355,3640.0,3639.7,0.4518]
[1753420141141,0.7010743,3640.3,3639.8,0.4518]
[1753420141347,2.74737209,3639.9,3639.5,1.285]
[1753420141638,4.354,3639.8,3639.6,0.4518]
[1753420141842,3.0,3640.2,3639.6,0.9048]
[1753420142045,0.65511878,3640.3,3639.6,0.9048]
[1753420142252,2.74734202,3639.9,3639.6,0.9048]
[1753420142405,4.351,3639.8,3639.6,0.453]
[1753420142602,4.351,3639.8,3639.5,0.8332]
[1753420142603,7.0984037,3639.8,3639.7,0.4518]
[1753420142834,2.74747918,3639.7,3639.2,0.4518]
[1753420142997,2.74800769,3639.0,3638.6,0.78120001]
[1753420143195,0.70984037,3639.7,3638.7,0.4518]
[1753420143397,2.78660664,3640.9,3638.9,0.7902]
[1753420143398,3.0,3640.4,3638.9,0.7902]
[1753420143628,3.0,3640.2,3639.5,0.7902]
[1753420143829,4.363,3640.1,3639.6,0.9048]
[1753420144032,3.0,3639.9,3639.7,0.4518]
[1753420144219,3.0,3639.7,3639.5,0.7902]
[1753420144422,5.74755467,3639.6,3639.5,0.7902]
[1753420144620,3.0,3639.6,3639.2,0.4518]
[1753420144937,2.74770566,3639.4,3638.8,0.7824]
[1753420145138,2.74770566,3639.4,3639.0,0.1376]
[1753420145539,3.0,3639.4,3639.0,0.5894]
[1753420145713,4.363,3639.3,3639.1,0.4518]
[1753420146239,3.0,3639.2,3639.0,0.1376]
[1753420146439,0.1376,3639.1,3638.7,0.4518]
[1753420146625,2.74727382,3640.0,3639.4,0.7979]
[1753420146805,2.74704132,3640.3,3639.5,2.74763016]
[1753420147137,3.0,3640.1,3639.7,0.1376]
[1753420147302,3.0,3639.9,3639.4,1.2497]
[1753420147503,3.0,3639.9,3638.4,2.74842526]
[1753420147504,0.1376,3639.5,3638.7,0.4518]
[1753420147722,4.373,3639.4,3638.8,0.7868]
[1753420147928,3.0,3639.3,3638.6,1e-08]
[1753420148239,2.8856992,3638.9,3638.6,1e-08]
[1753420148446,0.1376,3638.9,3638.6,1e-08]
[1753420148667,3.0,3639.4,3638.7,0.4518]
[1753420148822,0.1376,3639.0,3638.7,0.4518]
[1753420149019,7.12414615,3638.9,3638.6,1e-08]
[1753420149224,7.12414891,3638.9,3638.6,1e-08]
[1753420149552,0.1376,3638.8,3638.6,1e-08]
[1753420149757,0.1376,3638.8,3638.7,0.4518]
[1753420150352,2.74774456,3639.4,3638.7,0.4518]
[1753420150558,3.0,3639.2,3638.6,1e-08]
[1753420150759,2.88569241,3638.9,3638.6,1e-08]
[1753420151058,4.374,3638.8,3638.6,1e-08]
[1753420151256,0.1376,3638.9,3638.7,0.9048]
[1753420151457,0.1376,3639.6,3638.9,0.7847]
[1753420151641,4.373,3639.5,3639.1,0.1376]
[1753420151843,7.58026306,3639.5,3638.9,0.7847]
[1753420152049,2.88543965,3639.3,3638.9,0.7847]
[1753420152384,2.7479311,3639.2,3638.7,0.4518]
[1753420152856,4.376,3639.1,3638.7,0.4518]
[1753420153262,0.1396,3639.3,3638.8,0.4518]
[1753420153570,4.375,3639.1,3638.8,0.5894]
[1753420153720,0.7629,3639.0,3638.8,0.1376]
[1753420153921,0.7629,3639.0,3638.6,1e-08]
[1753420153922,0.1376,3638.9,3638.6,1e-08]
[1753420154118,0.002,3639.3,3638.8,0.8287]
[1753420154322,2.88553379,3639.1,3638.8,1.2805]
[1753420154518,0.1376,3638.9,3638.6,1e-08]
[1753420154754,3.88656208,3638.9,3638.6,1e-08]
[1753420154964,5.74823425,3638.7,3638.6,1e-08]
[1753420155170,5.88583425,3638.7,3638.6,1e-08]
[1753420155467,6.34543425,3638.7,3638.6,1e-08]
[1753420155847,5.88583425,3638.7,3638.6,1e-08]
[1753420156174,7.82891388,3638.7,3638.6,1e-08]
[1753420156339,8.29861388,3638.7,3638.6,1e-08]
[1753420156539,12.67461388,3638.7,3638.6,1e-08]
[1753420157150,8.29861388,3638.7,3638.6,1e-08]
[1753420157351,12.20491388,3638.7,3638.6,1e-08]
[1753420157556,7.82891388,3638.7,3638.6,1e-08]
[1753420157755,12.20391388,3638.7,3638.6,1e-08]
[1753420157950,12.65031388,3638.7,3638.6,1e-08]
[1753420158280,13.99401388,3638.7,3638.6,1e-08]
[1753420158480,14.12401388,3638.7,3638.6,1e-08]
[1753420158978,28.62401388,3638.7,3638.6,1e-08]
[1753420159580,6.57151195,3638.2,3638.1,1e-08]
[1753420159894,3.29883861,3637.9,3637.8,1e-08]
[1753420160046,11.50373861,3637.9,3637.8,1e-08]
[1753420160378,12.55243861,3637.9,3637.8,1e-08]
[1753420160767,13.14229565,3637.9,3637.8,1e-08]
[1753420160974,8.76129565,3637.9,3637.8,1e-08]
[1753420161182,9.41733668,3637.9,3637.8,1e-08]
[1753420161485,13.79680556,3637.9,3637.8,1e-08]
[1753420161890,13.95063536,3637.9,3637.8,1e-08]
[1753420162050,28.45063536,3637.9,3637.8,1e-08]
[1753420162401,28.58063536,3637.9,3637.8,1e-08]
[1753420162588,28.58463536,3637.9,3637.8,1e-08]
[1753420163060,24.20063536,3637.9,3637.8,1e-08]
[1753420163262,0.7745,3636.7,3636.1,0.04]
[1753420163585,3.0,3636.5,3636.1,0.04]
[1753420163793,0.1376,3636.2,3636.1,0.04]
[1753420163994,4.5226,3636.2,3636.1,0.04]
[1753420164294,10.27272375,3636.2,3636.1,0.04]
[1753420165885,10.73742375,3636.2,3636.1,0.04]
[1753420166402,12.08616486,3636.2,3636.1,0.04]
[1753420166700,7.5206,3636.2,3636.1,0.04]
[1753420167198,10.27072375,3636.2,3636.1,0.04]
[1753420167432,10.73542375,3636.2,3636.1,0.04]
[1753420168125,10.73542375,3636.2,3635.3,0.8233]
[1753420168126,0.5947,3636.2,3635.3,0.8233]
[1753420168417,2.75035066,3635.9,3635.3,0.001]
[1753420168595,3.0,3635.5,3635.3,0.001]
[1753420168794,0.41695363,3636.1,3635.4,0.8194]
[1753420169002,14.63,3636.2,3635.4,1.2709]
[1753420169003,0.13,3636.2,3635.4,1.2709]
[1753420169167,3.0,3635.6,3635.4,1.2709]
[1753420169363,7.408,3635.5,3635.4,1.2709]
[1753420169569,7.407,3635.5,3635.4,1.2709]
[1753420170099,4.406,3635.6,3635.4,1.2709]
[1753420170298,4.406,3635.6,3635.3,0.001]
[1753420170299,4.408,3635.5,3635.3,0.001]
[1753420170473,4.408,3635.5,3635.4,0.4515]
[1753420170675,5.75041871,3635.9,3635.4,0.4515]
[1753420170879,3.0,3635.7,3635.5,0.9047]
[1753420171086,4.411,3635.6,3635.3,0.001]
[1753420171511,1.01613653,3635.6,3635.3,0.001]
[1753420171710,5.1774,3635.5,3633.8,0.0275194]
[1753420171910,4.39623608,3634.8,3632.9,0.7849]
[1753420172109,4.39623608,3634.8,3633.2,0.4515]
[1753420172110,3.0,3634.6,3633.2,0.4515]
[1753420172287,3.0,3634.4,3633.3,0.4532]
[1753420172494,3.0,3634.2,3633.4,0.4515]
[1753420172697,0.13,3634.1,3633.8,0.7538]
[1753420173199,0.9374,3634.0,3633.2,0.4515]
[1753420173434,3.0,3633.8,3633.3,0.8001]
[1753420173723,0.13,3633.7,3633.4,0.9047]
[1753420174021,2.8820729,3633.7,3633.5,0.4515]
[1753420174312,0.13,3633.7,3633.6,4.45689158]
[1753420174519,0.13,3633.7,3633.6,1.7076]
[1753420174719,0.13,3633.7,3633.6,4.45969158]
[1753420176378,0.13,3633.7,3633.6,1.7076]
[1753420176623,0.13,3633.7,3633.6,1.2544]
[1753420177099,0.13,3633.7,3633.2,3.65708808]
[1753420177301,0.13,3633.7,3633.3,1.2109]
[1753420177504,0.13,3633.7,3633.3,1.6641]
[1753420177813,0.13,3633.7,3633.4,0.9047]
[1753420178017,0.13,3633.7,3633.4,0.5891]
[1753420178221,0.2676,3633.7,3633.3,0.7594]
[1753420178689,0.2676,3633.7,3633.1,2.93005452]
[1753420178690,0.56955513,3633.7,3633.4,0.4515]
[1753420179619,3.32159,3633.7,3633.4,0.4515]
[1753420179835,0.56955513,3633.7,3633.4,0.4515]
[1753420180188,0.1376,3633.5,3633.1,0.04]
[1753420180435,0.1376,3633.5,3633.1,0.4915]
[1753420181253,0.13,3633.4,3633.2,0.4515]
[1753420181382,0.13,3633.4,3633.1,0.04]
[1753420181703,0.1376,3633.2,3633.1,0.4915]
[1753420181904,0.2676,3633.2,3633.1,0.4915]
[1753420182109,0.2676,3633.2,3633.1,3.24397034]
[1753420182110,0.13,3633.2,3633.1,3.24397034]
[1753420182306,0.2676,3633.2,3633.1,0.04]
[1753420183319,3.32198067,3633.2,3633.1,0.04]
[1753420183522,8.58968067,3633.2,3633.1,0.04]
[1753420184120,23.08968067,3633.2,3633.1,0.04]
[1753420184618,2.75315235,3632.2,3632.1,0.03]
[1753420184786,3.29606759,3632.2,3632.1,0.03]
[1753420184982,6.76076759,3632.2,3632.1,0.03]
[1753420185182,7.31076759,3632.2,3632.1,0.03]
[1753420185408,7.75716759,3632.2,3632.1,0.03]
[1753420185980,7.31076759,3632.2,3631.1,0.04]
[1753420186198,0.1376,3631.2,3631.1,0.04]
[1753420186403,0.2676,3631.2,3631.1,0.04]
[1753420186620,3.02151055,3631.2,3631.1,0.04]
[1753420186827,0.2676,3631.2,3631.1,0.04]
[1753420187236,4.89490056,3631.2,3631.1,0.04]
[1753420187448,7.47571055,3631.2,3631.1,0.04]
[1753420187641,1.373,3630.5,3630.1,0.04]
[1753420187804,4.557,3631.3,3630.1,0.04]
[1753420187805,0.13,3630.4,3630.3,2.75459328]
[1753420188005,4.701,3630.4,3630.1,0.04]
[1753420188197,3.4558,3630.3,3630.1,0.04]
[1753420188534,3.0,3630.2,3630.1,0.04]
[1753420188710,0.13,3630.4,3630.2,0.9263]
[1753420189126,0.13,3630.4,3630.2,0.4655]
[1753420189702,0.13,3630.4,3630.3,2.75459328]
[1753420189907,0.13,3630.4,3630.1,4.07874297]
[1753420190205,0.13,3630.4,3630.1,1.324]
[1753420190511,0.13,3630.4,3630.1,0.5055]
[1753420190729,0.13,3630.4,3630.1,0.04]
[1753420190914,1.2869,3630.3,3630.1,0.04]
[1753420191104,0.13,3630.4,3630.3,2.75459328]
[1753420191300,0.13,3630.7,3630.6,2.75436566]
[1753420191525,0.13,3630.8,3630.7,2.7542898]
[1753420191741,1.05343289,3631.0,3630.8,2.75421394]
[1753420191742,0.13,3630.9,3630.8,2.75421394]
[1753420191911,0.13,3630.9,3630.8,3.68051394]
[1753420192119,0.13,3630.9,3630.7,0.8094]
[1753420192425,0.13,3630.9,3630.1,0.04]
[1753420192629,2.7542898,3630.7,3630.1,0.04]
[1753420192829,7.46738647,3630.6,3630.1,0.04]
[1753420193005,5.75466916,3630.2,3630.1,0.04]
[1753420193205,5.88466916,3630.2,3630.1,0.04]
[1753420193405,3.5858,3630.2,3630.1,0.04]
[1753420193750,0.13,3630.2,3630.1,3.26024504]
[1753420193953,0.13,3630.2,3630.1,0.04]
[1753420194357,0.5858,3630.2,3630.1,0.04]
[1753420194521,3.34046916,3630.2,3630.1,0.04]
[1753420194718,0.13,3630.2,3630.1,0.04]
[1753420195249,0.5858,3630.2,3630.1,0.04]
[1753420195752,7.68280643,3630.2,3630.1,0.041]
[1753420195951,4.37813727,3630.2,3630.1,0.041]
[1753420196249,5.9296,3630.2,3630.1,0.041]
[1753420196452,12.13266916,3630.2,3630.1,0.041]
[1753420196652,11.68926916,3630.2,3630.1,0.041]
[1753420197035,3.8888,3630.2,3630.1,0.041]
[1753420197230,3.8888,3630.2,3629.1,0.8195]
[1753420197231,0.55,3630.0,3629.1,0.04]
[1753420197432,7.32112011,3630.9,3629.1,0.5055]
[1753420197433,0.13,3629.9,3629.1,0.5055]
[1753420197623,0.1376,3629.5,3629.1,0.5055]
[1753420197952,0.1376,3629.5,3629.1,0.04]
[1753420198144,0.13,3629.9,3629.3,0.7795]
[1753420198344,0.13,3629.9,3629.5,2.75520044]
[1753420198548,0.13,3629.9,3629.7,2.75503484]
[1753420198925,0.13,3629.9,3629.6,0.4655]
[1753420199231,2.75453832,3630.4,3629.1,0.04]
[1753420199232,3.30474504,3630.1,3629.1,0.04]
[1753420199554,0.7886,3629.9,3629.2,2.75536934]
[1753420199756,3.0,3629.9,3629.3,0.4655]
[1753420200130,0.13,3629.8,3629.5,2.75520044]
[1753420200333,0.13,3629.8,3629.2,0.9263]
[1753420200543,0.13,3629.8,3629.5,2.75516532]
[1753420200748,0.13,3629.8,3629.4,2.7552562]
[1753420201056,0.13,3629.8,3629.3,2.75534377]
[1753420201256,0.13,3630.0,3629.3,0.4655]
[1753420201464,0.13,3630.0,3629.7,2.755021]
[1753420201661,0.13,3630.0,3629.9,2.75489682]
[1753420201824,3.13,3630.5,3629.8,0.4655]
[1753420202028,3.0,3630.3,3629.6,2.75512102]
[1753420202367,3.0,3630.3,3629.4,0.4655]
[1753420202368,0.13,3630.2,3629.4,3.22077141]
[1753420202579,0.71844611,3630.2,3629.5,2.75520044]
[1753420202723,0.13,3630.2,3629.6,0.9263]
[1753420202923,0.13,3630.2,3630.1,2.75474504]
[1753420203128,0.13,3630.2,3630.1,3.22024504]
[1753420203662,0.13,3630.2,3630.1,4.49204504]
[1753420203970,0.13,3630.2,3629.5,0.811]
[1753420204168,0.13,3630.1,3629.1,0.7982]
[1753420204764,0.13,3630.1,3629.2,0.95385428]
[1753420204932,0.13,3630.1,3629.7,2.75503834]
[1753420205128,0.13,3630.1,3630.0,2.75482093]
[1753420205429,3.0,3630.6,3629.4,1.2502]
[1753420205628,3.0,3630.5,3629.7,2.7549887]
[1753420205856,0.8061,3629.7,3629.1,0.04]
[1753420206162,6.56152819,3629.2,3629.1,1e-08]
[1753420206362,1.06168593,3629.2,3629.1,1e-08]
[1753420206524,0.13,3629.2,3629.1,1e-08]
[1753420206728,0.13,3629.6,3629.2,0.7894]
[1753420206935,0.13,3629.6,3629.1,1e-08]
[1753420207372,2.75542819,3629.2,3629.1,1e-08]
[1753420207536,6.39692428,3629.2,3629.1,1e-08]
[1753420207735,7.30112428,3629.2,3629.1,1e-08]
[1753420208268,7.43872428,3629.2,3629.1,1e-08]
[1753420208470,6.99032428,3629.2,3629.1,1e-08]
[1753420208760,5.89302819,3629.2,3629.1,1e-08]
[1753420209146,6.89882819,3629.2,3629.1,1e-08]
[1753420209342,6.34882819,3629.2,3629.1,1e-08]
[1753420209864,3.1376,3629.2,3629.1,1e-08]
[1753420210043,6.75784657,3629.2,3629.1,1e-08]
[1753420210369,5.89302819,3629.2,3629.1,1e-08]
[1753420211136,3.2676,3629.2,3629.1,1e-08]
[1753420212370,0.13,3629.2,3629.1,0.92630001]
[1753420212574,0.13,3629.2,3629.1,3.22100412]
[1753420213071,0.13,3629.2,3629.1,3.68180412]
[1753420213271,0.13,3629.2,3629.1,4.51581453]
[1753420213957,0.13,3629.2,3629.1,1e-08]
[1753420213958,0.1376,3629.2,3629.1,1e-08]
[1753420214275,7.27942819,3629.2,3629.1,1e-08]
[1753420214434,7.72782819,3629.2,3629.1,1e-08]
[1753420215945,4.0682,3629.2,3629.1,1e-08]
[1753420216141,3.2676,3629.2,3629.1,1e-08]
[1753420217283,3.2676,3629.2,3629.1,0.45270001]
[1753420217473,0.13,3629.2,3629.1,4.11418043]
[1753420218070,0.13,3630.0,3629.5,0.759]
[1753420218232,0.5920717,3631.2,3629.7,9.62515763]
[1753420218569,0.13,3630.7,3630.6,2.75435208]
[1753420218739,0.13,3630.7,3630.6,8.40385208]
[1753420218935,0.13,3631.1,3631.0,2.75406224]
[1753420219165,0.13,3631.1,3631.0,3.69156224]
[1753420219376,0.13,3631.1,3631.0,6.34903444]
[1753420219544,0.13,3631.1,3631.0,11.06503444]
[1753420220045,0.1376,3632.2,3631.8,2.75345558]
[1753420220247,0.1376,3632.2,3631.6,4.712]
[1753420220448,0.1376,3632.2,3631.7,2.8911314]
[1753420220748,0.1376,3632.2,3631.7,3.82855569]
[1753420220967,0.1376,3632.2,3631.8,0.4527]
[1753420221152,0.1376,3632.2,3631.8,3.69095558]
[1753420221353,0.002,3632.7,3631.8,4.54299013]
[1753420221555,0.1396,3632.7,3631.8,4.51545558]
[1753420221781,0.1396,3632.7,3631.8,9.23045558]
[1753420221997,0.002,3632.7,3631.8,7.71920244]
[1753420222287,0.1376,3632.3,3631.8,10.47265802]
[1753420222439,0.002,3632.7,3631.8,10.47265802]
[1753420222640,0.1376,3632.5,3631.8,10.47165802]
[1753420223070,0.002,3632.7,3631.8,10.47165802]
[1753420223477,3.0,3632.4,3631.5,3.20632596]
[1753420223675,2.75293117,3632.5,3631.2,3.57841029]
[1753420223676,3.0,3632.5,3631.8,5.1647]
[1753420223974,2.75323171,3632.1,3631.7,0.4527]
[1753420224186,3.0,3632.3,3631.6,4.717]
[1753420224187,2.753084,3632.3,3631.6,4.717]
[1753420224342,3.0,3632.0,3631.6,4.717]
[1753420224737,2.75332053,3632.0,3631.6,4.714]
[1753420224973,0.453,3632.6,3631.6,4.714]
[1753420224974,5.75314897,3632.3,3631.6,4.714]
[1753420225282,2.75334685,3632.0,3631.6,4.714]
[1753420225875,3.0,3632.3,3631.4,3.23854852]
[1753420225876,2.75323955,3632.1,3631.4,3.23854852]
[1753420226067,2.75323955,3632.1,3631.6,5.1607]
[1753420226234,2.75308908,3632.3,3631.6,5.1607]
[1753420226441,2.75330685,3632.0,3631.6,5.1607]
[1753420227075,2.75307839,3632.3,3631.7,0.4848]
[1753420227276,0.453,3632.6,3631.7,0.9375]
[1753420227461,2.75293881,3632.5,3631.8,0.9375]
[1753420227669,3.0,3632.4,3631.8,3.69095558]
[1753420227992,3.0,3632.6,3631.8,4.80621831]
[1753420228146,5.7528734,3632.6,3631.8,4.80621831]
[1753420228346,3.0,3632.6,3631.8,2.05276273]
[1753420228681,2.75316856,3632.2,3631.8,0.4527]
[1753420228984,3.002,3632.7,3631.8,0.9375]
[1753420228985,0.002,3632.7,3631.8,0.9375]
[1753420229185,2.75308581,3632.3,3631.8,0.9375]
[1753420229376,3.0,3632.3,3631.8,3.69095558]
[1753420229562,0.002,3632.7,3631.8,3.69095558]
[1753420229768,2.75290787,3632.6,3631.8,3.69095558]
[1753420230164,3.0,3632.5,3631.8,3.69095558]
[1753420230370,3.0,3632.5,3631.8,3.71849013]
[1753420230559,2.75293251,3632.5,3631.8,3.69095558]
[1753420230741,0.002,3632.7,3631.8,3.69095558]
[1753420230742,5.75285351,3632.6,3631.8,3.69095558]
[1753420230946,0.002,3632.7,3631.8,4.0890393]
[1753420231145,3.002,3632.7,3631.8,4.0890393]
[1753420231553,0.002,3632.7,3631.8,4.0890393]
[1753420231750,0.002,3632.7,3631.8,0.4527]
[1753420232160,0.002,3632.7,3631.8,3.69095558]
[1753420232663,3.002,3632.7,3631.8,3.69095558]
[1753420233014,0.002,3632.7,3631.8,9.23099013]
[1753420233151,0.002,3632.7,3631.8,9.20345558]
[1753420233344,0.002,3632.7,3632.6,2.75284919]
[1753420233650,0.002,3632.7,3632.5,4.68]
[1753420233846,0.002,3632.7,3632.6,0.1376]
[1753420234060,0.002,3632.7,3632.6,3.85547768]
[1753420234288,0.002,3632.7,3632.6,4.98432336]
[1753420234486,0.002,3632.7,3632.6,4.53162336]
[1753420234656,0.002,3632.7,3632.6,4.95679487]
[1753420235183,0.002,3632.7,3632.6,9.63479487]
[1753420235386,0.002,3632.7,3632.6,5.2653]
[1753420235784,0.002,3632.7,3632.6,8.01814919]
[1753420235958,0.002,3632.7,3632.6,8.50294919]
[1753420236288,0.002,3632.7,3632.6,8.01614919]
[1753420236476,0.002,3632.7,3632.6,3.82794919]
[1753420236796,0.002,3632.7,3632.6,8.49794919]
[1753420237292,0.002,3632.7,3632.6,5.7451]
[1753420237469,0.002,3632.7,3632.6,8.49794919]
[1753420237967,0.002,3632.7,3632.6,8.49694919]
[1753420238291,0.002,3632.7,3632.6,8.49194919]
[1753420238653,0.002,3632.7,3632.6,9.61644364]
[1753420239593,0.002,3632.7,3632.6,4.95244364]
[1753420239767,0.002,3632.7,3632.6,9.61044364]
[1753420240155,0.002,3632.7,3632.6,10.40064364]
[1753420240571,0.002,3632.7,3632.6,5.74264364]
[1753420240786,1e-08,3632.7,3632.6,18.26206659]
[1753420241087,1e-08,3632.7,3632.6,21.26206659]
[1753420241690,1e-08,3632.9,3632.8,2.75269764]
[1753420241891,1e-08,3632.9,3632.8,11.10838103]
[1753420242060,1e-08,3632.9,3632.8,11.21845406]
[1753420242395,1e-08,3632.9,3632.8,12.15595406]
[1753420243360,1e-08,3632.9,3632.8,7.50295406]
[1753420243588,1e-08,3632.9,3632.8,6.95295406]
[1753420243898,1e-08,3632.9,3632.8,8.78869764]
[1753420244892,1e-08,3632.9,3632.8,9.27049764]
[1753420245070,1e-08,3632.9,3632.8,9.26949764]
[1753420245387,1e-08,3632.9,3632.8,4.14569764]
[1753420245706,1e-08,3632.9,3632.8,7.52929764]
[1753420246057,1e-08,3632.9,3632.8,2.89029764]
[1753420246890,1e-08,3632.9,3632.8,7.52529764]
[1753420247088,1e-08,3632.9,3632.8,7.96509764]
[1753420247880,1e-08,3632.9,3632.8,8.43879764]
[1753420248067,1e-08,3632.9,3632.8,9.557959]
[1753420248264,1e-08,3632.9,3632.8,4.922959]
[1753420248484,1e-08,3632.9,3632.8,4.95048597]
[1753420248678,1e-08,3632.9,3632.8,9.57948597]
[1753420248893,1e-08,3632.9,3632.8,10.304259]
[1753420249193,1e-08,3632.9,3632.8,10.854259]
[1753420249556,0.04,3633.9,3633.8,3.52224011]
[1753420250078,0.04,3633.9,3633.8,7.51554011]
[1753420250279,0.04,3633.9,3633.8,7.37794011]
[1753420250591,0.04,3633.9,3633.8,8.29144011]
[1753420250759,0.04,3633.9,3633.8,9.34842316]
[1753420250958,0.04,3633.9,3633.8,10.12102316]
[1753420251188,1e-08,3633.9,3633.8,10.12102316]
[1753420251597,0.30600001,3635.1,3634.8,2.7511261]
[1753420251801,0.30600001,3635.1,3634.7,2.75123856]
[1753420252091,0.30600001,3635.1,3634.8,2.75116336]
[1753420252393,4.75259325,3635.6,3634.6,2.75133439]
[1753420252611,0.73794946,3635.5,3634.6,2.75133439]
[1753420252776,0.73794946,3635.5,3634.5,7.37337553]
[1753420253096,0.11747314,3635.4,3634.6,5.3926]
[1753420253260,0.11747314,3635.4,3635.2,2.75082422]
[1753420253461,0.04,3635.9,3635.0,2.75103163]
[1753420253783,3.8307552,3635.9,3635.2,2.75083756]
[1753420254102,0.9132,3635.8,3634.6,0.7726]
[1753420254262,3.9409638,3635.8,3634.4,2.75142833]
[1753420254464,3.9409638,3635.8,3634.0,0.4737]
[1753420254465,0.7911,3634.6,3633.9,2.75181529]
[1753420254800,2.75162016,3634.3,3633.5,2.75211441]
[1753420254998,2.75176872,3634.1,3633.4,2.75220725]
[1753420255293,0.8281,3634.0,3633.4,2.75220725]
[1753420255494,0.8281,3634.0,3633.3,2.752317]
[1753420255495,3.57991073,3634.0,3633.3,2.752317]
[1753420255696,2.75199509,3633.8,3633.1,0.04]
[1753420255898,0.4606,3633.9,3633.1,0.04]
[1753420256100,2.75207398,3633.7,3633.1,0.04]
[1753420256399,1.55256795,3634.0,3633.2,2.75239064]
[1753420256400,2.01316795,3634.0,3633.2,2.75239064]
[1753420256598,3.0,3633.8,3633.2,2.75239064]
[1753420256958,1.2887,3634.0,3633.4,2.75220449]
[1753420257208,1.2887,3634.0,3633.1,0.04]
[1753420257534,1.2887,3634.0,3633.2,0.02752394]
[1753420257804,2.75200465,3633.8,3633.1,0.04]
[1753420258006,2.75200465,3633.8,3633.1,2.792457]
[1753420258162,4.49316405,3634.0,3633.1,0.04]
[1753420258163,1.7413,3634.0,3633.1,0.04]
[1753420258517,0.8281,3634.0,3633.6,2.75208165]
[1753420258998,0.8281,3634.0,3633.4,2.75223754]
[1753420259312,0.8281,3634.0,3633.5,2.75216733]
[1753420259461,0.8281,3634.0,3633.7,2.75201094]
[1753420259973,0.8281,3634.0,3633.3,0.17731]
[1753420259974,0.8281,3634.0,3633.8,2.75193766]
[1753420260174,0.8056,3634.4,3634.0,2.7517317]
[1753420260470,0.1376,3634.3,3633.9,2.75185294]
[1753420260671,0.1376,3634.3,3633.8,0.1376]
[1753420260881,0.5982,3634.3,3633.8,0.1376]
[1753420261059,3.5982,3634.3,3633.8,0.1376]
[1753420261294,0.5982,3634.3,3633.8,0.1376]
[1753420261588,0.1376,3634.6,3634.1,0.1376]
[1753420261788,0.8117,3634.7,3634.3,2.75149461]
[1753420261986,0.8117,3634.7,3634.3,2.88909461]